bitfinex/quotes_BTCUSD_20240908
["timestamp","ask_amount","ask_price","bid_price","bid_amount"]
[1725764236890,0.11035266,54496.0,54495.0,0.183503]
[1725764237944,0.11035266,54496.0,54495.0,0.181503]
[1725764238172,0.11035183,54496.0,54495.0,0.181503]
[1725764238589,0.11035183,54496.0,54495.0,0.18447033]
[1725764239640,0.11333239,54496.0,54495.0,0.18447033]
[1725764239852,0.14210158,54496.0,54495.0,0.18447033]
[1725764240265,0.14410158,54496.0,54495.0,0.18447033]
[1725764240480,0.14710158,54496.0,54495.0,0.18447033]
[1725764240921,0.03174975,54496.0,54495.0,0.18447033]
[1725764241333,0.03274975,54496.0,54495.0,0.18447033]
[1725764242161,0.05195673,54496.0,54495.0,0.18447033]
[1725764243451,0.16230856,54496.0,54495.0,0.18447033]
[1725764243671,0.16230856,54496.0,54495.0,0.24487033]
[1725764244193,0.16230856,54496.0,54495.0,0.61187633]
[1725764244612,0.16130856,54496.0,54495.0,0.61187633]
[1725764245009,0.16130856,54496.0,54495.0,0.61287633]
[1725764245233,0.13253937,54496.0,54495.0,0.61287633]
[1725764245457,0.02218754,54496.0,54495.0,0.61287633]
[1725764249503,0.05095628,54496.0,54495.0,0.61287633]
[1725764249701,0.05095628,54496.0,54495.0,0.24587033]
[1725764250286,0.05095628,54496.0,54495.0,0.61287633]
[1725764251133,0.06123129,54496.0,54495.0,0.61287633]
[1725764252106,0.06123129,54496.0,54495.0,0.55247633]
[1725764252510,0.06123129,54496.0,54495.0,0.18547033]
[1725764255322,0.03246255,54496.0,54495.0,0.18547033]
[1725764258564,0.06123148,54496.0,54495.0,0.18547033]
[1725764265206,0.03246255,54496.0,54495.0,0.18547033]
[1725764265659,0.03246255,54496.0,54495.0,0.19547033]
[1725764268432,0.06123143,54496.0,54495.0,0.19547033]
[1725764272421,0.06123143,54496.0,54495.0,0.19710033]
[1725764272628,0.06204643,54496.0,54495.0,0.19710033]
[1725764275283,0.03327755,54496.0,54495.0,0.19710033]
[1725764278413,0.06204637,54496.0,54495.0,0.19710033]
[1725764280481,0.03327755,54496.0,54495.0,0.19710033]
[1725764282857,0.01407057,54496.0,54495.0,0.19710033]
[1725764283503,0.01407057,54496.0,54495.0,0.01559733]
[1725764284154,0.01407057,54496.0,54495.0,0.07899733]
[1725764284387,0.01407057,54496.0,54495.0,0.99651233]
[1725764284609,0.01407057,54496.0,54495.0,1.44331833]
[1725764284610,0.13874374,54496.0,54495.0,1.44331833]
[1725764285051,0.13874374,54496.0,54495.0,1.07431233]
[1725764286629,0.000815,54496.0,54495.0,2.54271689]
[1725764286871,0.11115105,54496.0,54495.0,2.54271689]
[1725764287316,0.000815,54496.0,54495.0,2.54271689]
[1725764289314,0.08354689,54496.0,54495.0,2.54271689]
[1725764293007,0.000815,54496.0,54495.0,2.54271689]
[1725764294154,0.000815,54496.0,54495.0,2.54071689]
[1725764294394,0.08354689,54496.0,54495.0,1.29849889]
[1725764294589,0.000815,54496.0,54495.0,1.29849889]
[1725764294732,0.11115105,54496.0,54495.0,1.29849889]
[1725764294935,0.12378611,54496.0,54495.0,1.29849889]
[1725764295141,0.12378611,54496.0,54495.0,1.29749889]
[1725764295377,0.12378611,54496.0,54495.0,1.66450489]
[1725764295583,0.12472772,54496.0,54495.0,1.66450489]
[1725764296001,0.12372772,54496.0,54495.0,1.66450489]
[1725764296381,0.12372772,54496.0,54495.0,1.66550489]
[1725764297514,0.12372772,54496.0,54495.0,1.29849889]
[1725764298065,0.12372772,54496.0,54495.0,0.19910033]
[1725764300987,0.12372772,54496.0,54495.0,0.01559733]
[1725764300988,0.01345006,54496.0,54495.0,0.01559733]
[1725764301200,0.1510994,54496.0,54495.0,0.01559733]
[1725764301456,0.04082158,54496.0,54495.0,0.01459733]
[1725764301639,0.01345006,54496.0,54495.0,0.01459733]
[1725764301861,0.01545006,54496.0,54495.0,0.01459733]
[1725764302064,0.01545006,54496.0,54495.0,0.19810033]
[1725764302271,0.18006595,54496.0,54495.0,0.19810033]
[1725764302479,0.18206595,54496.0,54495.0,0.19810033]
[1725764303310,0.18206595,54496.0,54495.0,0.01459733]
[1725764304444,0.04421887,54496.0,54495.0,0.01459733]
[1725764304645,0.18206595,54496.0,54495.0,0.01459733]
[1725764305272,0.17250412,54496.0,54495.0,0.01459733]
[1725764305491,0.1997317,54496.0,54495.0,0.01459733]
[1725764305909,0.1997316,54496.0,54495.0,0.01459733]
[1725764306810,0.06188112,54496.0,54495.0,0.01459733]
[1725764308299,0.3812306,54496.0,54495.0,0.01459733]
[1725764308507,0.77699891,54496.0,54495.0,0.01459733]
[1725764308705,0.7502296,54496.0,54495.0,0.00459733]
[1725764309357,0.3832306,54496.0,54495.0,0.00459733]
[1725764309520,0.3832306,54496.0,54495.0,0.01459733]
[1725764309721,0.3832306,54496.0,54495.0,0.00459733]
[1725764309722,0.3812306,54496.0,54495.0,0.00459733]
[1725764309921,0.3812306,54496.0,54495.0,0.01459733]
[1725764311826,0.41100029,54496.0,54495.0,0.01459733]
[1725764312068,0.41100029,54496.0,54495.0,0.00459733]
[1725764312274,0.41100029,54496.0,54495.0,0.01459733]
[1725764312687,0.22750129,54496.0,54495.0,0.01459733]
[1725764312937,0.08271253,54496.0,54495.0,0.01459733]
[1725764313106,0.09323063,54496.0,54495.0,0.01459733]
[1725764314498,0.0105181,54496.0,54495.0,0.01459733]
[1725764316576,0.03716382,54496.0,54495.0,0.01459733]
[1725764318333,0.119876,54496.0,54495.0,0.01459733]
[1725764318979,0.120691,54496.0,54495.0,0.01459733]
[1725764321315,0.12069355,54496.0,54495.0,0.01459733]
[1725764322633,0.12069355,54496.0,54495.0,0.19810033]
[1725764322978,0.03797882,54496.0,54495.0,0.19810033]
[1725764326258,0.67277682,54496.0,54495.0,0.00163]
[1725764326473,1.58377482,54496.0,54495.0,0.00163]
[1725764326948,1.95077382,54496.0,54495.0,0.00163]
[1725764327217,1.95077382,54496.0,54493.0,0.00163]
[1725764327218,0.550518,54494.0,54493.0,0.00163]
[1725764327459,0.550518,54494.0,54476.0,0.4792]
[1725764327460,0.55019729,54487.0,54476.0,0.4692]
[1725764327681,0.55072,54474.0,54473.0,0.55430836]
[1725764327900,0.55072,54474.0,54469.0,0.30163]
[1725764327901,0.550761,54470.0,54469.0,0.30163]
[1725764328114,0.63986562,54470.0,54469.0,0.30163]
[1725764328330,0.63986562,54470.0,54469.0,0.30459733]
[1725764328331,0.4056412,54470.0,54469.0,0.30459733]
[1725764328561,0.37815276,54470.0,54469.0,0.30459733]
[1725764328811,0.10546114,54470.0,54469.0,0.30459733]
[1725764329041,0.10546114,54470.0,54469.0,0.31459733]
[1725764329042,0.08246114,54470.0,54469.0,0.31459733]
[1725764329269,0.05497606,54470.0,54469.0,0.57588733]
[1725764329489,0.05497606,54472.0,54470.0,0.183587]
[1725764329941,0.05497606,54472.0,54471.0,0.00296733]
[1725764330175,0.09718304,54472.0,54471.0,0.00296733]
[1725764330292,0.04220698,54472.0,54471.0,0.00296733]
[1725764330729,0.06885116,54472.0,54471.0,0.00196733]
[1725764331164,0.07099546,54472.0,54471.0,0.00196733]
[1725764335482,0.07099546,54472.0,54471.0,0.18555033]
[1725764336586,0.06885116,54472.0,54471.0,0.18555033]
[1725764336806,0.07927295,54472.0,54471.0,0.18555033]
[1725764340574,0.05627295,54472.0,54471.0,0.56271733]
[1725764340794,0.05627295,54472.0,54471.0,1.00758433]
[1725764340795,0.01920698,54472.0,54471.0,1.00758433]
[1725764341011,0.01920698,54472.0,54471.0,1.37475133]
[1725764341648,0.01920698,54472.0,54471.0,1.37675133]
[1725764343555,0.02020698,54472.0,54471.0,1.37675133]
[1725764343976,0.02020698,54472.0,54471.0,1.37838133]
[1725764345900,0.02020698,54472.0,54471.0,1.37638133]
[1725764346367,0.02020698,54472.0,54471.0,1.37838133]
[1725764347020,0.02020698,54472.0,54471.0,1.43908133]
[1725764351806,0.02020698,54472.0,54471.0,2.53847989]
[1725764355142,0.02020698,54472.0,54471.0,2.53647989]
[1725764355557,0.02020698,54472.0,54471.0,2.03091289]
[1725764355984,0.02102298,54472.0,54471.0,2.03091289]
[1725764357654,0.02102298,54472.0,54471.0,2.03291289]
[1725764365259,0.183554,54480.0,54476.0,0.183564]
[1725764365459,0.01027964,54479.0,54477.0,0.183563]
[1725764366622,0.01027964,54479.0,54478.0,0.18356]
[1725764367239,0.01027964,54479.0,54476.0,0.002]
[1725764367457,0.01227964,54479.0,54476.0,0.002]
[1725764367902,0.01027964,54479.0,54478.0,0.18356]
[1725764368112,0.01127964,54479.0,54478.0,0.18356]
[1725764368963,0.01027964,54479.0,54478.0,0.18356]
[1725764369388,0.01227964,54479.0,54478.0,0.18356]
[1725764371028,0.01327964,54479.0,54478.0,0.18356]
[1725764371249,0.06825931,54479.0,54478.0,0.18356]
[1725764371931,0.01027964,54479.0,54478.0,0.18356]
[1725764372132,0.06529662,54479.0,54478.0,0.18756]
[1725764372344,0.09374915,54479.0,54478.0,0.55468]
[1725764372559,0.09374915,54479.0,54478.0,0.18356]
[1725764372794,0.09274915,54479.0,54478.0,0.18356]
[1725764373243,0.09274915,54479.0,54478.0,0.55068]
[1725764373705,0.09274915,54479.0,54478.0,0.61208]
[1725764374143,0.09274915,54479.0,54478.0,0.61308]
[1725764375062,0.14772882,54479.0,54478.0,0.61308]
[1725764375288,0.14772882,54479.0,54478.0,0.61508]
[1725764375525,0.14772882,54479.0,54478.0,0.61308]
[1725764375993,0.14772882,54479.0,54478.0,0.61208]
[1725764376417,0.14872882,54479.0,54478.0,0.61208]
[1725764376909,0.14772882,54479.0,54478.0,0.61208]
[1725764377345,0.34848002,54484.0,54478.0,0.61208]
[1725764377346,0.11014865,54481.0,54479.0,0.182553]
[1725764377568,0.023,54480.0,54479.0,0.182553]
[1725764378009,0.10561275,54480.0,54479.0,0.181553]
[1725764378244,0.10561275,54480.0,54479.0,0.180553]
[1725764378245,0.023,54480.0,54479.0,0.180553]
[1725764378680,0.025,54480.0,54479.0,0.180553]
[1725764378897,0.028,54480.0,54479.0,0.180553]
[1725764381337,0.13814865,54480.0,54479.0,0.180553]
[1725764382736,0.13814865,54480.0,54477.0,0.183562]
[1725764383032,0.13814865,54480.0,54479.0,0.183556]
[1725764383499,0.13514865,54480.0,54479.0,0.183556]
[1725764383943,0.13314865,54480.0,54479.0,0.183556]
[1725764384167,0.13414865,54480.0,54479.0,0.183556]
[1725764384406,0.023,54480.0,54479.0,0.183556]
[1725764384865,0.03198425,54480.0,54479.0,0.185556]
[1725764385332,0.02998425,54480.0,54479.0,0.185556]
[1725764385551,0.02998425,54480.0,54479.0,0.183556]
[1725764385796,0.02998425,54480.0,54479.0,0.184556]
[1725764386250,0.02998425,54480.0,54479.0,0.183556]
[1725764386908,0.02998425,54480.0,54479.0,0.184556]
[1725764390040,0.02998425,54480.0,54479.0,0.001]
[1725764390892,0.02998425,54480.0,54478.0,0.18356]
[1725764391106,0.03198425,54480.0,54478.0,0.18356]
[1725764391319,0.03398425,54480.0,54478.0,0.18356]
[1725764391529,0.03198425,54480.0,54478.0,0.18356]
[1725764391999,0.02998425,54480.0,54478.0,0.185192]
[1725764392162,0.03198425,54480.0,54478.0,0.185192]
[1725764392383,0.03280025,54480.0,54478.0,0.185192]
[1725764393463,0.03480025,54480.0,54478.0,0.185192]
[1725764396579,0.03280025,54480.0,54479.0,0.183556]
[1725764397013,0.00980025,54480.0,54479.0,0.01]
[1725764397246,0.00980025,54480.0,54479.0,0.193556]
[1725764397465,0.00780025,54480.0,54479.0,0.193556]
[1725764397678,0.00980025,54480.0,54479.0,0.193556]
[1725764398115,0.00780025,54480.0,54479.0,0.193556]
[1725764398323,0.00980025,54480.0,54479.0,0.193556]
[1725764398527,0.01180025,54480.0,54479.0,0.193556]
[1725764398735,0.01180025,54480.0,54479.0,0.560669]
[1725764398955,0.00980025,54480.0,54479.0,0.560669]
[1725764399402,0.00980025,54480.0,54479.0,0.193556]
[1725764399891,0.00780025,54480.0,54479.0,0.193556]
[1725764400068,0.00780025,54480.0,54479.0,0.194556]
[1725764400529,0.00780025,54480.0,54479.0,0.990382]
[1725764400736,0.00780025,54480.0,54479.0,1.35946233]
[1725764400737,0.14559916,54480.0,54479.0,1.35946233]
[1725764400945,0.00780025,54480.0,54479.0,1.07174933]
[1725764401186,0.06292447,54480.0,54479.0,1.43886233]
[1725764401395,0.00780025,54480.0,54479.0,1.44086233]
[1725764402269,0.00780025,54480.0,54479.0,1.44286233]
[1725764402712,0.00780025,54480.0,54479.0,1.44086233]
[1725764402950,0.00780025,54480.0,54479.0,1.43986233]
[1725764403153,0.00880025,54480.0,54479.0,1.44186233]
[1725764403361,0.00880025,54480.0,54479.0,1.44586233]
[1725764403607,0.00880025,54480.0,54479.0,1.44186233]
[1725764404020,0.00980025,54480.0,54479.0,1.44686233]
[1725764404454,0.00980025,54480.0,54479.0,1.08138133]
[1725764407114,0.00980025,54480.0,54479.0,1.44649433]
[1725764407371,0.00980025,54480.0,54479.0,1.44849433]
[1725764417825,0.002816,54480.0,54479.0,2.54789289]
[1725764418532,0.002816,54480.0,54479.0,1.81560733]
[1725764423802,0.002816,54480.0,54479.0,2.91500589]
[1725764424042,0.002816,54480.0,54479.0,2.91300589]
[1725764424699,0.002816,54480.0,54479.0,2.91500589]
[1725764429009,0.002816,54480.0,54479.0,2.54789289]
[1725764429659,0.03377559,54490.0,54487.0,0.183528]
[1725764429868,0.03377559,54490.0,54488.0,0.183526]
[1725764429869,0.02541711,54489.0,54488.0,0.183526]
[1725764430088,0.03218737,54489.0,54488.0,0.183526]
[1725764430753,0.03218737,54489.0,54488.0,0.550579]
[1725764431183,0.03218737,54489.0,54488.0,0.183526]
[1725764431932,0.03318737,54489.0,54488.0,0.183526]
[1725764434558,0.03318737,54489.0,54488.0,1.064132]
[1725764434559,0.01018737,54489.0,54488.0,1.064132]
[1725764435004,0.001,54489.0,54488.0,1.064132]
[1725764436298,0.02741559,54490.0,54489.0,0.917615]
[1725764436768,0.08250491,54495.0,54492.0,0.183513]
[1725764436995,0.05501075,54493.0,54492.0,0.182513]
[1725764437228,0.05501186,54493.0,54492.0,0.182513]
[1725764437695,0.11130491,54494.0,54492.0,0.180513]
[1725764438372,0.0550263,54493.0,54492.0,0.180513]
[1725764438596,0.05751666,54493.0,54492.0,0.180513]
[1725764439047,0.05752187,54493.0,54491.0,0.183516]
[1725764439271,0.05503192,54492.0,54491.0,0.183516]
[1725764439496,0.0575151,54492.0,54491.0,0.183516]
[1725764439706,0.08498809,54492.0,54491.0,0.183516]
[1725764439926,0.00248318,54492.0,54491.0,0.183516]
[1725764440168,0.08503606,54492.0,54491.0,0.183516]
[1725764440637,0.08503606,54492.0,54491.0,0.188516]
[1725764440857,0.0850436,54492.0,54491.0,0.192516]
[1725764441076,0.11929947,54492.0,54491.0,0.192516]
[1725764441303,0.09179141,54492.0,54491.0,0.192516]
[1725764441553,0.09179539,54492.0,54491.0,0.569549]
[1725764441796,0.09179539,54492.0,54491.0,1.45288233]
[1725764441797,0.06428323,54492.0,54491.0,1.45288233]
[1725764442024,0.00923123,54492.0,54491.0,1.45288233]
[1725764443147,0.02877223,54494.0,54493.0,0.92151433]
[1725764443356,0.02877223,54494.0,54493.0,0.99641433]
[1725764443609,0.03130629,54494.0,54493.0,0.99641433]
[1725764443822,0.02877223,54494.0,54493.0,0.99641433]
[1725764444038,0.03289311,54494.0,54493.0,0.99641433]
[1725764444241,0.02877223,54494.0,54493.0,0.99641433]
[1725764444734,0.02877223,54494.0,54493.0,0.99841433]
[1725764444939,0.02877223,54494.0,54493.0,0.99941433]
[1725764445383,0.02737524,54495.0,54494.0,0.91953]
[1725764445574,0.02737524,54495.0,54494.0,0.92149733]
[1725764445820,0.055867,54496.0,54495.0,0.917515]
[1725764446709,0.03218829,54496.0,54495.0,0.917515]
[1725764447364,0.03318829,54496.0,54495.0,0.919515]
[1725764447811,0.02905388,54496.0,54495.0,0.919515]
[1725764448246,0.02905388,54496.0,54495.0,0.917515]
[1725764448247,0.03942929,54496.0,54495.0,0.917515]
[1725764448909,0.03942929,54496.0,54495.0,0.91948233]
[1725764449338,0.03842929,54496.0,54495.0,0.91948233]
[1725764449808,0.03942929,54496.0,54495.0,0.91948233]
[1725764450024,0.03842929,54496.0,54495.0,0.91948233]
[1725764450241,0.03842929,54496.0,54495.0,0.56247633]
[1725764450462,0.03842929,54496.0,54495.0,0.56947633]
[1725764450681,0.03842929,54496.0,54495.0,0.56747633]
[1725764451148,0.03942929,54496.0,54495.0,0.56847633]
[1725764451787,0.02905388,54496.0,54495.0,0.56847633]
[1725764452411,0.03943668,54496.0,54495.0,0.56947633]
[1725764452839,0.02905388,54496.0,54495.0,0.56847633]
[1725764453270,0.02905388,54496.0,54495.0,0.57347633]
[1725764460956,0.02905388,54496.0,54495.0,0.20647033]
[1725764461224,0.03485388,54496.0,54495.0,0.20647033]
[1725764461403,0.04526879,54496.0,54495.0,0.20647033]
[1725764461860,0.06823795,54496.0,54495.0,0.20647033]
[1725764462073,0.06823795,54496.0,54495.0,0.57347633]
[1725764462562,0.06823795,54496.0,54495.0,0.01296733]
[1725764463481,0.12326458,54496.0,54495.0,0.01296733]
[1725764463724,0.12326458,54496.0,54495.0,0.02296733]
[1725764465283,0.09449542,54496.0,54495.0,0.02296733]
[1725764467970,0.09449542,54496.0,54495.0,0.08836733]
[1725764468607,0.12326515,54496.0,54495.0,0.08836733]
[1725764471497,0.03946879,54496.0,54495.0,0.08836733]
[1725764471724,0.03946879,54496.0,54495.0,0.02296733]
[1725764472181,0.09452938,54496.0,54495.0,0.02296733]
[1725764472408,0.09453135,54496.0,54495.0,0.02296733]
[1725764472652,0.03946879,54496.0,54495.0,0.02296733]
[1725764472875,0.09453275,54496.0,54495.0,0.02296733]
[1725764473490,0.09453571,54496.0,54495.0,0.02296733]
[1725764473706,0.03946879,54496.0,54495.0,0.02296733]
[1725764473912,0.09453593,54496.0,54495.0,0.02296733]
[1725764474572,0.06823842,54496.0,54495.0,0.02296733]
[1725764474785,0.12330831,54496.0,54495.0,0.02296733]
[1725764475229,0.09453868,54496.0,54495.0,0.02296733]
[1725764476390,0.03946879,54496.0,54495.0,0.02296733]
[1725764477511,0.12200873,54496.0,54495.0,0.02296733]
[1725764478588,0.15077839,54496.0,54495.0,0.02296733]
[1725764479058,0.15088848,54496.0,54495.0,0.02296733]
[1725764479929,0.06823845,54496.0,54495.0,0.02296733]
[1725764480157,0.15089766,54496.0,54495.0,0.021]
[1725764480420,0.15089766,54496.0,54495.0,0.02296733]
[1725764480669,0.15089766,54496.0,54495.0,0.08836733]
[1725764481320,0.122128,54496.0,54495.0,0.08836733]
[1725764481569,0.03946879,54496.0,54495.0,0.08836733]
[1725764481799,0.12214612,54496.0,54495.0,0.27187033]
[1725764482036,0.03946879,54496.0,54495.0,0.27187033]
[1725764482278,0.12214874,54496.0,54495.0,0.35257033]
[1725764482497,0.11101504,54497.0,54496.0,0.20746633]
[1725764482498,0.000815,54497.0,54496.0,0.20746633]
[1725764482716,0.000815,54497.0,54496.0,1.27466895]
[1725764482949,0.000815,54497.0,54496.0,2.381335]
[1725764483406,0.000815,54500.0,54499.0,1.76447695]
[1725764483625,0.000815,54500.0,54499.0,2.00957695]
[1725764485208,0.001815,54500.0,54499.0,2.01657695]
[1725764485975,0.12926642,54522.0,54520.0,0.009]
[1725764486193,0.08254458,54521.0,54520.0,0.009]
[1725764486404,0.10175156,54522.0,54520.0,0.009]
[1725764486620,0.1292584,54522.0,54518.0,0.192424]
[1725764486855,0.07801131,54521.0,54518.0,0.009]
[1725764487105,0.05501131,54520.0,54518.0,0.009]
[1725764487329,0.366856,54518.0,54511.0,0.00196733]
[1725764487570,0.10710462,54519.0,54508.0,0.00196733]
[1725764487571,0.08910462,54511.0,54508.0,0.00196733]
[1725764487805,0.183457,54509.0,54506.0,0.00196733]
[1725764488026,0.05501268,54508.0,54506.0,0.00196733]
[1725764488247,0.1441173,54508.0,54506.0,0.00196733]
[1725764488738,0.07801268,54507.0,54497.0,0.00196733]
[1725764488981,0.183476,54503.0,54502.0,0.00196733]
[1725764489223,0.07802266,54503.0,54498.0,0.00196733]
[1725764489489,0.55044,54502.0,54501.0,0.00196733]
[1725764489714,0.27259162,54500.0,54498.0,0.00196733]
[1725764489943,0.27259162,54500.0,54499.0,0.00196733]
[1725764490175,0.023,54499.0,54498.0,0.00196733]
[1725764490373,0.02861915,54499.0,54498.0,0.00196733]
[1725764490540,0.023,54499.0,54498.0,0.00196733]
[1725764490790,0.02861915,54499.0,54498.0,0.00296733]
[1725764491213,0.05738637,54499.0,54498.0,0.00196733]
[1725764491539,0.05738637,54499.0,54498.0,0.00396733]
[1725764492494,0.03438637,54499.0,54498.0,0.00396733]
[1725764492720,0.03438637,54499.0,54498.0,0.64564433]
[1725764493185,0.02876722,54499.0,54498.0,0.64564433]
[1725764493660,0.02876722,54499.0,54498.0,0.64664433]
[1725764493885,0.02876722,54499.0,54498.0,0.64464433]
[1725764494122,0.02876722,54499.0,54498.0,0.64664433]
[1725764494586,0.02876722,54499.0,54498.0,0.64864433]
[1725764494816,0.02876722,54499.0,54498.0,1.01562933]
[1725764495035,0.02876722,54499.0,54498.0,0.64864433]
[1725764495271,0.05502524,54504.0,54501.0,0.18348]
[1725764495501,0.05502524,54504.0,54501.0,0.183482]
[1725764495502,0.1943616,54502.0,54501.0,0.183482]
[1725764495718,0.16709232,54502.0,54501.0,0.183482]
[1725764495971,0.22211756,54502.0,54501.0,0.18544933]
[1725764496441,0.22211756,54502.0,54501.0,0.19444933]
[1725764496658,0.22211756,54502.0,54501.0,0.18544933]
[1725764497389,0.42859856,54502.0,54498.0,0.01259733]
[1725764497611,0.023,54501.0,54498.0,0.01259733]
[1725764498054,0.023,54501.0,54499.0,0.00196733]
[1725764498517,0.023,54501.0,54500.0,0.00196733]
[1725764498518,0.206482,54501.0,54500.0,0.00196733]
[1725764498751,0.206482,54501.0,54498.0,0.00163]
[1725764498752,0.917447,54499.0,54498.0,0.00163]
[1725764498984,1.308426,54499.0,54498.0,0.00163]
[1725764499211,1.47350172,54499.0,54498.0,0.00163]
[1725764499436,1.4200516,54499.0,54498.0,0.00163]
[1725764499679,1.5380516,54499.0,54498.0,0.00163]
[1725764499906,1.55608427,54499.0,54498.0,0.00163]
[1725764500142,1.55608427,54499.0,54492.0,0.00163]
[1725764500143,1.383266,54493.0,54492.0,0.00163]
[1725764500328,1.57335832,54493.0,54492.0,0.00163]
[1725764500574,1.73846498,54493.0,54492.0,0.00163]
[1725764500827,2.04341511,54493.0,54492.0,0.00163]
[1725764501042,2.07774804,54493.0,54492.0,0.00163]
[1725764501730,1.365361,54489.0,54479.0,0.001632]
[1725764501962,1.57345332,54489.0,54479.0,0.001632]
[1725764502181,1.83844101,54489.0,54479.0,0.001632]
[1725764502413,1.67900874,54489.0,54479.0,0.001632]
[1725764502638,1.84399643,54489.0,54479.0,0.001632]
[1725764502875,1.68203974,54489.0,54479.0,0.001632]
[1725764503328,0.55066,54480.0,54479.0,0.001632]
[1725764503559,1.19028031,54480.0,54479.0,0.001632]
[1725764504009,1.23434085,54480.0,54479.0,0.001632]
[1725764504511,1.78482688,54480.0,54479.0,0.001632]
[1725764504799,1.70844785,54480.0,54479.0,0.001632]
[1725764505032,1.84981617,54480.0,54479.0,0.001632]
[1725764505264,1.81503464,54480.0,54479.0,0.001632]
[1725764505485,1.81103464,54480.0,54479.0,0.001632]
[1725764505711,1.78343143,54480.0,54479.0,0.001632]
[1725764506430,1.67660904,54480.0,54479.0,0.001632]
[1725764506682,1.71742405,54480.0,54479.0,0.001632]
[1725764506906,1.73042405,54480.0,54479.0,0.001632]
[1725764507138,1.70342405,54480.0,54479.0,0.001632]
[1725764507356,1.79967416,54480.0,54479.0,0.001632]
[1725764507583,1.81367416,54480.0,54479.0,0.001632]
[1725764508507,1.78622883,54480.0,54479.0,0.001632]
[1725764508702,1.81501301,54480.0,54479.0,0.001632]
[1725764509646,1.74620823,54480.0,54479.0,0.001632]
[1725764510322,1.76020823,54480.0,54479.0,0.001632]
[1725764512670,1.68050823,54480.0,54479.0,0.001632]
[1725764512925,1.66650823,54480.0,54479.0,0.001632]
[1725764513142,1.64750823,54480.0,54479.0,0.001632]
[1725764513377,1.68171521,54480.0,54479.0,0.001632]
[1725764513606,1.65371521,54480.0,54479.0,0.001632]
[1725764514048,1.68171521,54480.0,54479.0,0.001632]
[1725764514304,1.66771521,54480.0,54479.0,0.001632]
[1725764514524,1.65371521,54480.0,54479.0,0.001632]
[1725764514761,1.66771521,54480.0,54479.0,0.001632]
[1725764514996,1.68171521,54480.0,54479.0,0.001632]
[1725764515240,1.65293103,54480.0,54479.0,0.001632]
[1725764516148,1.65834008,54480.0,54479.0,0.001632]
[1725764518654,1.68712336,54480.0,54479.0,0.001632]
[1725764524226,1.40733406,54480.0,54479.0,0.001632]
[1725764524453,1.60388706,54480.0,54479.0,0.001632]
[1725764524669,1.58988706,54480.0,54479.0,0.001632]
[1725764525334,1.56110378,54480.0,54479.0,0.001632]
[1725764525970,1.57410378,54480.0,54479.0,0.001632]
[1725764527574,1.20699678,54480.0,54479.0,0.138332]
[1725764528048,1.20699678,54480.0,54479.0,0.001632]
[1725764528479,1.60288607,54480.0,54479.0,0.001632]
[1725764529584,1.60388607,54480.0,54479.0,0.001632]
[1725764531176,1.58988607,54480.0,54479.0,0.001632]
[1725764531649,1.60388607,54480.0,54479.0,0.001632]
[1725764532326,1.59088607,54480.0,54479.0,0.001632]
[1725764532537,1.60188607,54480.0,54479.0,0.001632]
[1725764532762,1.57688607,54480.0,54479.0,0.001632]
[1725764533232,1.59488607,54480.0,54479.0,0.001632]
[1725764535298,1.56710378,54480.0,54479.0,0.001632]
[1725764537446,1.6187556,54480.0,54479.0,0.001632]
[1725764538145,1.54086805,54480.0,54479.0,0.001632]
[1725764538384,1.17276105,54480.0,54479.0,0.001632]
[1725764538625,1.20154345,54480.0,54479.0,0.001632]
[1725764539070,1.20254345,54480.0,54479.0,0.001632]
[1725764539318,0.74523168,54480.0,54479.0,0.138332]
[1725764539570,0.31436093,54480.0,54479.0,0.138332]
[1725764539807,0.49791393,54480.0,54479.0,0.138332]
[1725764540945,0.86502093,54480.0,54479.0,0.138332]
[1725764542355,0.91986548,54480.0,54479.0,0.138332]
[1725764542568,0.91986548,54480.0,54479.0,0.001632]
[1725764543534,0.94728775,54480.0,54479.0,0.001632]
[1725764544179,1.02616328,54480.0,54479.0,0.001632]
[1725764544405,0.94389646,54480.0,54479.0,0.001632]
[1725764545346,1.31100346,54480.0,54479.0,0.001632]
[1725764545582,0.94389646,54480.0,54479.0,0.001632]
[1725764547422,1.31100346,54480.0,54479.0,0.001632]
[1725764547651,0.94389646,54480.0,54479.0,0.001632]
[1725764548332,0.93389646,54480.0,54479.0,0.001632]
[1725764548607,0.92489646,54480.0,54479.0,0.001632]
[1725764548839,0.93489646,54480.0,54479.0,0.001632]
[1725764549313,1.48715511,54480.0,54479.0,0.001632]
[1725764549545,1.11904811,54480.0,54479.0,0.001632]
[1725764550009,0.93189646,54480.0,54479.0,0.001632]
[1725764551413,0.93289646,54480.0,54479.0,0.001632]
[1725764551639,1.30000346,54480.0,54479.0,0.001632]
[1725764551884,1.29900346,54480.0,54479.0,0.001632]
[1725764552321,1.30500346,54480.0,54479.0,0.001632]
[1725764552756,0.93789646,54480.0,54479.0,0.001632]
[1725764553880,1.30500346,54480.0,54479.0,0.001632]
[1725764554574,0.93789646,54480.0,54479.0,0.001632]
[1725764555013,1.124102,54480.0,54479.0,0.001632]
[1725764555225,1.0953196,54480.0,54479.0,0.001632]
[1725764555443,1.4624266,54480.0,54479.0,0.001632]
[1725764556542,1.27622106,54480.0,54479.0,0.001632]
[1725764556795,1.4624266,54480.0,54479.0,0.001632]
[1725764558147,1.4494266,54480.0,54479.0,0.001632]
[1725764558387,1.4574266,54480.0,54479.0,0.001632]
[1725764558612,1.48620885,54480.0,54479.0,0.001632]
[1725764559070,1.13973901,54480.0,54479.0,0.001632]
[1725764559284,1.49320885,54480.0,54479.0,0.001632]
[1725764559957,1.30700331,54480.0,54479.0,0.001632]
[1725764560175,1.49320885,54480.0,54479.0,0.001632]
[1725764560435,0.93989631,54480.0,54479.0,0.001632]
[1725764560673,0.92489631,54480.0,54479.0,0.066432]
[1725764560933,0.93189631,54480.0,54479.0,0.066432]
[1725764561141,1.12410185,54480.0,54479.0,0.066432]
[1725764561363,1.49120885,54480.0,54479.0,0.066432]
[1725764561577,1.12410185,54480.0,54479.0,0.066432]
[1725764561833,1.30500331,54480.0,54479.0,0.066432]
[1725764562321,0.93789631,54480.0,54479.0,0.066432]
[1725764562554,0.93089631,54480.0,54479.0,0.066432]
[1725764562780,1.29800331,54480.0,54479.0,0.066432]
[1725764563686,1.29200331,54480.0,54479.0,0.066432]
[1725764563916,1.30000331,54480.0,54479.0,0.066432]
[1725764564142,1.30700331,54480.0,54479.0,0.066432]
[1725764564378,0.93989631,54480.0,54479.0,0.066432]
[1725764564864,1.30700331,54480.0,54479.0,0.066432]
[1725764565049,0.93989631,54480.0,54479.0,0.066432]